Cogmind - Beta 16.1 @@@ ROGUE MODE // 2026.04.30 @ 03:58:29 Player: coopco Result: Destroyed by B5-5I9(j) with Overtuned Pulse Rifle Performance ------------- Evolutions (0) 0 Regions Visited (5) 1000 Robots Destroyed (7) 35 Value Destroyed (244) 244 Prototype IDs (28) 560 Alien Tech Used (0) 0 Bonus (922) 922 TOTAL SCORE: 2761 Bonus ------- Follower Combat Kills 135 Registered with UFD 300 Met Optimus in HQ 500 Friendly Fire -13 Cogmind --------- Core Integrity 0/250 Matter 300/300 Energy 180/180 System Corruption 1% Temperature Cool (12) Movement Walking (130) Location -9/Scraptown Parts ------- > --- POWER (1) -------- Meta Core > --- PROPULSION (2) --- Cargo Legs > --- UTILITY (2+3) ---- Large Storage Unit Advanced Visual Processing Unit A0-MCA's Component Scanner (+) > --- WEAPON (2+1) ----- Overtuned Pulse Rifle Overtuned Railgun > --- INVENTORY (15) --- Light Angular Momentum Engine Overtuned Scrapsphere Overtuned Huge Scrapsphere Overtuned Huge Scrapsphere Authchip [Propulsion] Authchip [Processor] Scrapoid Pod CPS Tube (2) CPS Tube (2) DRS Beacon (Ready) Botcube Peak State ------------ > --- POWER ------------ Meta Core > --- PROPULSION ------- Cargo Legs Compact Wheel > --- UTILITY ---------- Large Storage Unit Advanced Visual Processing Unit Hacking Suite A0-MCA's Component Scanner > --- WEAPON ----------- Gatling Laser Overtuned Railgun Ripper > --- INVENTORY -------- Light Angular Momentum Engine Overtuned Huge Scrapsphere Overtuned Huge Scrapsphere Authchip [Propulsion] Authchip [Processor] Scrapoid Pod Field Laser Overtuned Pulse Rifle CPS Tube CPS Tube DRS Beacon Botcube [Rating: 69] Favorites ----------- Power Light Ion Engine Engine Light Ion Engine Power Core Meta Core Propulsion Light Treads Treads Light Treads Leg Cargo Legs Wheel Compact Wheel Utility Large Storage Unit Device Thief Drone Bay Storage Large Storage Unit Processor Advanced Visual Processing Unit Hackware Hacking Suite Weapon Medium Laser Energy Gun Medium Laser Ballistic Gun Battle Rifle Ballistic Cannon Battle Cannon Launcher Grenade Launcher Slashing Weapon Ripper Build | -11 -10 -10 -10 -9 -9 ------- Run | Yrd Mat Min Sub Rec Scr Slots Evolved . | . . . . . . Power . | . . . . . . Propulsion . | . . . . . . Utility . | . . . . . . Weapon . | . . . . . . Parts Attached 27 | 7 . 2 4 1 13 Power 3 | 1 . . . . 2 Engine 2 | 1 . . . . 1 Core 1 | . . . . . 1 Reactor . | . . . . . . Propulsion 5 | 2 . . . . 3 Treads 3 | 2 . . . . 1 Leg 1 | . . . . . 1 Wheel 1 | . . . . . 1 Hover . | . . . . . . Flight . | . . . . . . Utility 8 | 1 . 2 1 1 3 Device 2 | . . 1 1 . . Storage 3 | 1 . 1 . 1 . Processor 2 | . . . . . 2 Hackware 1 | . . . . . 1 Protection . | . . . . . . Artifact . | . . . . . . Weapon 11 | 3 . . 3 . 5 Energy Gun 5 | 2 . . . . 3 Energy Cannon . | . . . . . . Ballistic Gun 3 | 1 . . 1 . 1 Ballistic Cannon 1 | . . . 1 . . Launcher 1 | . . . 1 . . Special Weapon . | . . . . . . Impact Weapon . | . . . . . . Slashing Weapon 1 | . . . . . 1 Piercing Weapon . | . . . . . . Special Melee Weapon . | . . . . . . Unidentified Prototypes 1 | . . 1 . . . Parts Lost 3 | . . . . . 3 Power . | . . . . . . Propulsion 1 | . . . . . 1 Utility 1 | . . . . . 1 Weapon 1 | . . . . . 1 Highest Loss Streak 2 | . . . . . 2 To Critical Strikes . | . . . . . . Average Backups 10 | 2 4 5 8 9 11 Power . | . 1 1 . . . Propulsion 2 | 1 2 2 2 1 2 Utility 3 | . . . 1 2 4 Weapon 3 | . 1 2 3 4 3 Tool/Special . | . . . . . . Unused Backups 26 | . . . 7 1 18 Power 4 | . . . 2 . 2 Propulsion 9 | . . . 2 1 6 Utility 7 | . . . 2 . 5 Weapon 3 | . . . 1 . 2 Tool/Special 3 | . . . . . 3 Average Slot Usage (%) 90 | . 85 97 100 100 85 Engine 7 | . 14 14 14 14 3 Core 4 | . . . . . 7 Treads 21 | . 28 28 28 28 16 Leg 1 | . . . . . 2 Wheel 4 | . . . . . 6 Device 7 | . . 11 14 14 4 Storage 11 | . 14 14 14 14 10 Processor 4 | . . . . . 8 Energy Gun 9 | . 14 14 7 7 10 Ballistic Gun 9 | . 14 14 4 14 10 Launcher 2 | . . . 10 6 . Slashing Weapon 1 | . . . . . 3 Peak Build Rating 69 | 6 6 13 18 19 69 Average Rating 27 | 4 6 11 15 18 35 On Entrance 10 | . 6 6 13 18 19 Avg Prop Armor Cover (%) 2 | . . . . . 2 Naked Turns . | . . . . . . Heaviest Build 39 | 12 12 21 23 32 39 Greatest Support 55 | 40 40 40 40 40 55 Greatest Overweight (x) . | . . . . . . Average Overweight (x) . | . . . . . . Largest Inventory Capacity 15 | 8 8 10 10 15 15 Average Capacity 13 | 6 8 8 10 12 15 Most Carried 15 | 4 5 7 10 11 15 Average Carried 12 | 2 4 5 9 10 14 Final Capacity 15 | 8 8 10 10 15 15 Final Carried 14 | 4 5 7 10 11 14 Class Distribution -------------------- 65% | Commander-Mutant 34% | Mutant Dominant Class ---------------- Mutant | -10/Materials Mutant | -10/Mines Mutant | -10/Subcaves Commander-Mutant | -9/Recycling Commander-Mutant | -9/Scraptown Resources | -11 -10 -10 -10 -9 -9 ----------- Run | Yrd Mat Min Sub Rec Scr Matter Collected 727 | 248 . 37 216 55 171 Remotely . | . . . . . . Salvage Created 307 | . . . 88 . 219 Parts 9 | . . . 1 . 8 Haulers Intercepted . | . . . . . . Recyclers Shooed . | . . . . . . Parts Field Recycled . | . . . . . . Retrieved Matter . | . . . . . . Parts Self-Destructed 20 | . . . 18 . 2 Prevented . | . . . . . . Parts Restored . | . . . . . . Kills | -11 -10 -10 -10 -9 -9 ------- Run | Yrd Mat Min Sub Rec Scr Combat Hostiles Destroyed 5 | . . . 2 . 3 Melee 1 | . . . . . 1 Guns 3 | . . . 1 . 2 AOE 1 | . . . 1 . . Classes Destroyed 5 | . . . 2 . 3 Turret 2 | . . . 2 . . Subdweller 2 | . . . 2 . . Bolteater 1 | . . . . . 1 Ranger 1 | . . . . . 1 Scrapper 1 | . . . . . 1 Best Kill Streak 2 | . . . 2 . 2 Combat Bots Only 2 | . . . 1 . 2 Max Kills in Single Turn 1 | . . . 1 . 1 Gunslinging . | . . . . . . Exploded 1 | . . . 1 . . Melee 1 | . . . . . 1 Uniques/NPCs Destroyed . | . . . . . . Combat | -11 -10 -10 -10 -9 -9 -------- Run | Yrd Mat Min Sub Rec Scr Hostile Shots Fired 115 | . 2 . 42 . 71 Missed 36 | . . . 16 . 20 Hits 79 | . 2 . 26 . 51 Melee 10 | . . . . . 10 Projectile 69 | . 2 . 26 . 41 AOE 1 | . . . . . 1 Critical Strikes 3 | . . . . . 3 Damage Taken 975 | . 21 . 260 . 694 Core 260 | . 21 . 67 . 172 Absorbed by Shields . | . . . . . . Core Remaining (%) 100 | 100 . . . . . Volleys Fired 34 | . . . 27 . 7 Largest 2 | . . . 2 . 2 Hottest 120 | . . . 70 . 120 Shots Fired 41 | . . . 34 . 7 Gun 29 | . . . 22 . 7 Cannon 8 | . . . 8 . . Launcher 4 | . . . 4 . . Special . | . . . . . . Kinetic 22 | . . . 21 . 1 Thermal 15 | . . . 9 . 6 Explosive 4 | . . . 4 . . Electromagnetic . | . . . . . . Robot Hit Streak 8 | . . . 6 . 8 Robot Miss Streak 3 | . . . 3 . 2 Penetration Max . | . . . . . . Secondary Targets . | . . . . . . Shots Hit Robots 22 | . . . 15 . 7 Core Hits 13 | . . . 8 . 5 Critical Kills . | . . . . . . Critical Parts Destroyed . | . . . . . . Critical Strikes . | . . . . . . Melee Attacks 3 | . . . . . 3 Impact . | . . . . . . Slashing 3 | . . . . . 3 Piercing . | . . . . . . Sneak Attacks . | . . . . . . Combat Hostiles . | . . . . . . Follow-up Attacks . | . . . . . . Damage Inflicted 499 | . 6 . 332 . 161 Guns 331 | . . . 204 . 127 Cannons . | . . . . . . Explosions 128 | . . . 128 . . Melee 34 | . . . . . 34 Ramming 6 | . 6 . . . . Kinetic 157 | . . . 126 . 31 Thermal 174 | . . . 78 . 96 Explosive 128 | . . . 128 . . Electromagnetic . | . . . . . . Impact . | . . . . . . Slashing 34 | . . . . . 34 Piercing . | . . . . . . Highest Corruption 1 | . . . . . 1 Average Corruption 1 | . . . . . 1 Corruption Purged . | . . . . . . Corruption Blocked . | . . . . . . Effects 1 | . . . . . 1 Matter Fused 1 | . . . . . 1 Overload Shots . | . . . . . . Overflow Damage . | . . . . . . Projectiles . | . . . . . . Explosions . | . . . . . . Melee . | . . . . . . Knockbacks . | . . . . . . Impact . | . . . . . . Kinetic . | . . . . . . Secondary . | . . . . . . Self-Inflicted Damage . | . . . . . . Shots . | . . . . . . Rammed 1 | . 1 . . . . Targets Rammed 1 | . 1 . . . . Kicked . | . . . . . . Crushed . | . . . . . . Highest Temperature 193 | . . . . . 193 Average Temperature 86 | . . . . . 86 Received Heat Transfer 429 | . 12 . 126 . 291 Siege Activations . | . . . . . . Martial Activations . | . . . . . . Shielding Activations . | . . . . . . Robots Disrupted . | . . . . . . Combat Hostiles . | . . . . . . Robots Corrupted . | . . . . . . Combat Hostiles . | . . . . . . Parts Fried . | . . . . . . Impact Corruptions . | . . . . . . Robots Melted . | . . . . . . Combat Hostiles . | . . . . . . Parts Melted 3 | . . . 3 . . Heat Transferred 446 | . . . 222 . 224 Parts Sabotaged . | . . . . . . Parts Stolen 1 | . . . . . 1 Parts Stripped . | . . . . . . Power Chain Reactions . | . . . . . . Alert | -11 -10 -10 -10 -9 -9 ------- Run | Yrd Mat Min Sub Rec Scr Maximum Alert Level . | . . . . . . Low Security (%) 100 | 100 100 100 . 100 . Level 1 . | . . . . . . Level 2 . | . . . . . . Level 3 . | . . . . . . Level 4 . | . . . . . . Level 5 . | . . . . . . High Security . | . . . . . . Max Security . | . . . . . . Peak Influence 64 | . . . . 64 . Initial 64 | . . . . 64 . Average 5 | . . . . 11 . Influence Increases 234 | . . . 189 45 . Destroy 0b10 Robot/C 120 | . . . 80 40 . Allied During Kill 9 | . . . 4 5 . Lose Combat Pursuer 105 | . . . 105 . . Influence Decreases 234 | . . . 54 180 . Entered New Map 71 | . . . . 71 . Time Decay 163 | . . . 54 109 . Squads Dispatched . | . . . . . . Investigation . | . . . . . . Extermination . | . . . . . . Reinforcement . | . . . . . . Assault . | . . . . . . Garrison . | . . . . . . Intercept . | . . . . . . Searches Triggered . | . . . . . . Construction Impeded . | . . . . . . Haulers Reinforced . | . . . . . . Active Scanning Responses . | . . . . . . Cargo Convoy Interrupts . | . . . . . . Stealth | -11 -10 -10 -10 -9 -9 --------- Run | Yrd Mat Min Sub Rec Scr Distress Signals . | . . . . . . Communications Jammed . | . . . . . . Distress Signals . | . . . . . . Times Spotted 25 | . 3 . 12 1 9 Peak Tracking Total 4 | . 4 . 3 1 4 Tactical Retreats 3 | . . . 3 . . Traps | -11 -10 -10 -10 -9 -9 ------- Run | Yrd Mat Min Sub Rec Scr Traps Triggered . | . . . . . . Indirectly . | . . . . . . Trap Hack Attempts . | . . . . . . Triggered . | . . . . . . Disarmed . | . . . . . . Reprogrammed . | . . . . . . Reused . | . . . . . . Traps Extracted . | . . . . . . Installed . | . . . . . . Triggered . | . . . . . . Machines | -11 -10 -10 -10 -9 -9 ---------- Run | Yrd Mat Min Sub Rec Scr Machines Disabled 5 | . . . 2 . 3 Max in Single Turn 1 | . . . 1 . 1 Machines Repaired . | . . . . . . Machines Dismantled . | . . . . . . Machines Sabotaged . | . . . . . . Overloaded Fab Kills . | . . . . . . Hacking | -11 -10 -10 -10 -9 -9 --------- Run | Yrd Mat Min Sub Rec Scr Machines Accessed 9 | . . 1 1 . 7 Terminals . | . . . . . . Fabricators . | . . . . . . Repair Stations . | . . . . . . Recycling Units . | . . . . . . Scanalyzers . | . . . . . . Garrison Access . | . . . . . . Total Hacks 35 | . . 1 9 . 25 Successful 35 | . . 1 9 . 25 Failed . | . . . . . . Catastrophic . | . . . . . . Database Lockouts . | . . . . . . Manual . | . . . . . . Terminals . | . . . . . . Fabricators . | . . . . . . Repair Stations . | . . . . . . Recycling Units . | . . . . . . Scanalyzers . | . . . . . . Garrison Access . | . . . . . . Terminal Hacks 35 | . . 1 9 . 25 Record 32 | . . . 8 . 24 Open Door 1 | . . 1 . . . Proto ID Catalog 2 | . . . 1 . 1 Fabricator Hacks . | . . . . . . Repair Station Hacks . | . . . . . . Recycling Unit Hacks . | . . . . . . Scanalyzer . | . . . . . . Garrison Access Hacks . | . . . . . . Unauthorized Hacks . | . . . . . . Terminals . | . . . . . . Fabricators . | . . . . . . Repair Stations . | . . . . . . Recycling Units . | . . . . . . Scanalyzers . | . . . . . . Garrison Access . | . . . . . . Data Cores Recovered . | . . . . . . Used . | . . . . . . Hacking Detections . | . . . . . . Full Trace Events . | . . . . . . Feedback Events . | . . . . . . Feedback Blocked . | . . . . . . Robot Schematics Acquired . | . . . . . . Robots Built . | . . . . . . Authchips . | . . . . . . Time . | . . . . . . Total Robot Build Rating . | . . . . . . Part Schematics Acquired . | . . . . . . Parts Built . | . . . . . . Authchips . | . . . . . . Time . | . . . . . . Total Part Build Rating . | . . . . . . Part Studies Acquired . | . . . . . . Parts Repaired . | . . . . . . Time . | . . . . . . Parts Recycled . | . . . . . . Recycled Matter . | . . . . . . Retrieved Matter . | . . . . . . Retrieved Components . | . . . . . . Parts Scanalyzed . | . . . . . . Part Schematics Acquired . | . . . . . . Parts Damaged . | . . . . . . Bothacking | -11 -10 -10 -10 -9 -9 ------------ Run | Yrd Mat Min Sub Rec Scr Used RIF Installer . | . . . . . . Robots Hacked . | . . . . . . Non-combat . | . . . . . . Combat . | . . . . . . Robot Hacks Applied . | . . . . . . Relay Couplers Released . | . . . . . . Fabnet Peak Effective % . | . . . . . . Robots Rewired 7 | . . . . 7 . Allies Hacked . | . . . . . . Hacks Repelled . | . . . . . . Allies | -11 -10 -10 -10 -9 -9 -------- Run | Yrd Mat Min Sub Rec Scr Total Allies 9 | . . 2 . 7 . Largest Group 8 | . . 2 2 8 8 Highest-Rated Group 127 | . . 47 51 127 127 Highest-Rated Ally 31 | . . 31 31 31 31 Total Orders 17 | . . . 14 1 2 STAY 2 | . . . . . 2 EXPLORE 15 | . . . 14 1 . Ally Attacks 85 | . . . 63 10 12 Total Damage 793 | . . . 563 115 115 Kills 9 | . . . 5 2 2 Allies Corrupted . | . . . . . . Allies Melted 2 | . . . . . 2 Intel | -11 -10 -10 -10 -9 -9 ------- Run | Yrd Mat Min Sub Rec Scr Active Infowar (turns) 2653 | . . . 241 . 2412 Optics 2653 | . . . 241 . 2412 Robot Analysis Total . | . . . . . . Derelict Logs Recovered 5 | . . 1 2 . 2 Drone Launches 13 | . . . 11 2 . Drone Recoveries 10 | . . . 9 1 . Exploration | -11 -10 -10 -10 -9 -9 ------------- Run | Yrd Mat Min Sub Rec Scr Turns Passed 5526 | 83 89 381 1062 566 3345 Spaces Moved 3347 | 46 55 229 592 265 2160 Core 4 | 4 . . . . . Treads 2725 | 42 55 229 592 265 1542 Legs 618 | . . . . . 618 Wheels . | . . . . . . Hover . | . . . . . . Flight . | . . . . . . Fastest Speed 50 | 50 160 160 160 160 130 Average Speed 154 | 150 160 160 160 160 151 Slowest Speed 160 | 160 160 160 160 160 160 Overloaded Moves . | . . . . . . Propulsion Burnouts . | . . . . . . Robots Hopped . | . . . . . . Potential Cave-ins . | . . . . . . Cave-ins Triggered . | . . . . . . Exploration Rate (%) 56 | 5 13 42 85 99 95 Regions Visited 5 Branch Regions 4 Pre-discovered Areas . | . . . . . . Known Exits Taken . | . . . . . . Unknown Exits Taken 5 | 1 1 1 1 1 . Scrap Searched 13 | . . . 2 . 11 Spaces Dug . | . . . . . . Terrain Destroyed 23 | . . . 23 . . Melee . | . . . . . . Projectile 1 | . . . 1 . . AOE 22 | . . . 22 . . Terrain Rammed . | . . . . . . Walls Destroyed . | . . . . . . Machines Disabled . | . . . . . . Actions | -11 -10 -10 -10 -9 -9 --------- Run | Yrd Mat Min Sub Rec Scr Total 3669 | 56 56 243 675 408 2231 Wait 101 | . . 12 31 55 3 Move 3342 | 45 54 228 591 264 2160 Hop . | . . . . . . Pick Up 37 | 4 1 1 9 2 20 Fast Attach 14 | 6 . 1 . . 7 Attach 5 | . . . . . 5 Detach . | . . . . . . Swap 15 | 1 . 1 8 2 3 Drop 35 | . . . 9 3 23 Fire 34 | . . . 27 . 7 Melee 3 | . . . . . 3 Ram . | . . . . . . Kick . | . . . . . . Crush 1 | . 1 . . . . Escape Stasis . | . . . . . . Rewire 82 | . . . . 82 . Trap . | . . . . . . Miscellaneous . | . . . . . . Route ------- -11/Scrapyard -10/Materials -10/Mines (discovered 3 exits: *Mat x2 / *Sub) -10/Subcaves (discovered 3 exits: [*Mat x2] / *Rec) -9/Recycling (discovered 2 exits: [*Fac] / *Scr) -9/Scraptown (discovered 2 exits: [*Fac x2]) History --------- Turn | Location | Event 35 | -11/Scrapyard | Discovered new exit (range 15) 84 | -11/Scrapyard | Entered Materials 105 | -10/Materials | Discovered new exit (range 16) 173 | -10/Materials | Entered Mines 208 | -10/Mines | Identified exit to Materials 220 | -10/Mines | Met a Derelict bent on vengeance 222 | -10/Mines | Found the Drone Emporium 230 | -10/Mines | Found Prototype Device 230 | -10/Mines | Identified Thief Drone Bay 308 | -10/Mines | Build established: Mutant 381 | -10/Mines | Discovered exit to Materials (range 9) 512 | -10/Mines | Discovered new exit (range 14) 554 | -10/Mines | Entered Subcaves 554 | -10/Subcaves | Accompanied by 2 allies 559 | -10/Subcaves | Led the pair of lost Derelicts to an unsafe place 581 | -10/Subcaves | Shifting Twisted Machinery released Scrap Shield 643 | -10/Subcaves | Discovered new exit (range 49) 663 | -10/Subcaves | A swath of the cavern ceiling suddenly collapsed 801 | -10/Subcaves | Found Prototype Leg 906 | -10/Subcaves | Learned Materials garrison access intel 1044 | -10/Subcaves | Visited 4L-MR0's lab 1056 | -10/Subcaves | Identified Cargo Legs 1073 | -10/Subcaves | Learned location of 1 exit from Materials 1077 | -10/Subcaves | Found Meta Core 1336 | -10/Subcaves | Shifting Twisted Machinery released Shrapnel Trap 1417 | -10/Subcaves | Discovered new exit (range 63) 1436 | -10/Subcaves | Discovered new exit (range 60) 1616 | -10/Subcaves | Entered Recycling 1616 | -9/Recycling | Accompanied by 2 allies 1660 | -9/Recycling | Scanned before Scraplab entrance 1681 | -9/Recycling | Discovered new exit (range 88) 1682 | -9/Recycling | Entered Scraplab 1715 | -9/Recycling | Discovered new exit (range 16) 2182 | -9/Recycling | Entered Scraptown 2182 | -9/Scraptown | Accompanied by 10 allies 2194 | -9/Scraptown | Build established: Commander-Mutant 2212 | -9/Scraptown | Led the pair of lost Derelicts to a safe place 2595 | -9/Scraptown | Heard Great Nut preacher, LISTEN AND RECITE! 2720 | -9/Scraptown | Discovered new exit (range 7) 2821 | -9/Scraptown | Scanned Subdweller tech in exchange for log data 2824 | -9/Scraptown | Learned Factory stockpile data 2825 | -9/Scraptown | Learned Factory interactive machine intel 2901 | -9/Scraptown | Visited Fellowship of the Rings 2933 | -9/Scraptown | Visited Bundlers 3008 | -9/Scraptown | Attached Meta Core, gained temporary slots: Propulsion, Utility, Weapon 3094 | -9/Scraptown | Visited CPS Storage 3106 | -9/Scraptown | Visited Cyclists 3447 | -9/Scraptown | Visited TADAMA 3468 | -9/Scraptown | Visited Shadow of the Wyrm 3496 | -9/Scraptown | Visited UFD Registry 3496 | -9/Scraptown | Registered with UFD as "Ionninja" 3532 | -9/Scraptown | Visited Symbiants 3605 | -9/Scraptown | Entered Cyclist Reading Room 3725 | -9/Scraptown | Visited Chapter 10 3773 | -9/Scraptown | Visited Research Penetration Think Tank 3818 | -9/Scraptown | Visited Science Guys 4060 | -9/Scraptown | Visited Curators Association 4103 | -9/Scraptown | Visited DA-N13 Charitable Foundation 4130 | -9/Scraptown | Found DCF Scrap (31 items) 4223 | -9/Scraptown | Visited Derelict Rescue Squad 4235 | -9/Scraptown | Found DRS Beacon 4258 | -9/Scraptown | Visited Scrapoid Pod Storage 4277 | -9/Scraptown | Found Scrapoid Pod 4312 | -9/Scraptown | Visited A0-MCA Data Center 4321 | -9/Scraptown | Given an A- rating by A0-MCA 4324 | -9/Scraptown | Found A0-MCA's Component Scanner 4359 | -9/Scraptown | Visited Botcube Research 4379 | -9/Scraptown | Found Botcube 4412 | -9/Scraptown | Visited Modified Component R&D 4631 | -9/Scraptown | Discovered new exit (range 5) 4676 | -9/Scraptown | Attached Cargo Legs, gained temporary slots: Utility x2 5237 | -9/Scraptown | Met Optimus 5237 | -9/Scraptown | Accepted into 0bPrime 5400 | -9/Scraptown | Civil war broke out across Scraptown 5453 | -9/Scraptown | Lost 3 allies 5484 | -9/Scraptown | Core integrity fell below 50% 5505 | -9/Scraptown | Core integrity fell below 20% 5527 | -9/Scraptown | Destroyed by B5-5I9(j) with Overtuned Pulse Rifle Last Messages --------------- 05493_ Penetrated by Bolt. 05493_ Critical hit (Burn: +50). 05496_ KC-LAR(j) switches sides: "Sorry everyone but I think they're right!" 05496_ Bolt penetrates Machine. 05496_ KC-LAR(j) destroyed. 05498_ Bolt penetrates Machine. 05501_ Penetrated by Bolt. 05504_ Bolt penetrates Machine. 05504_ Penetrated by Bolt. 05508_ Dropped DRS Beacon. 05511_ Acquired DRS Beacon. 05515_ Bolt penetrates Machine. 05516_ Dropped Ovr. Pulse Rifle. 05517_ Acquired Ovr. Pulse Rifle. 05517_ Bolt penetrates Machine. 05520_ Bolt penetrates Wall. 05525_ Ripper destroyed. 05525_ Bolt penetrates Wall. 05525_ Hacking Suite destroyed. Map ----- +----------------------------------------------------+ | ?????????????????????????????????????????????????? | | ?????????????????????????????????????????????????? | | ?????????????????????????????????????????????????? | | ?????????????????????????????????????????????????? | | ?????????????????????????????????????????????????? | | ??????????????????????????????????????#####??????? | | ??????????????????????????????????????#"""#??????? | | ???????###################???####?????#" "#??????? | | ??????#"""##"""##""|##"""#??## ##????# < #??????? | | ??????#"" ##"" ##"" ##!!"#### ###### ##?????? | | ??????#"" #?????? | | ??????# #?????? | | ??????####################### ###########?????? | | ####????????????????????????## ##???????????????? | | """#?????????????????????????# #????????????????? | | """#???????????????########### %#????????????????? | | " "#???????????????#"""""""""# =#????????????????? | | ="#???????????????#"""""""""# #????????????????? | | !"#???????????????#"""""""""# #????????????????? | | ! "#???????????????#"""""""""# #????????????????? | | """#???####"########""" """# ##########???????? | | "###???#"" """"##""" """#=*# """""""#???????? | | ""#???#"" """##""" "!"#=!#" = "#???????? | | #???# " ! ""##"""" """#%[#" "#???????? | | #???#" """##""" """#!=#" "#???????? | | = #???#" ##" @ #![#" "#???????? | | %###???##### ###########j#####*%## #######???????? | | !########### ###########h#####==## ############### | | """"""""""" """ """"""" [ ""==%[" "## """"""""# | | [= !%* !!*!%= ## " " " "# | | ] =%= ==! = ! ## "# | | =! ## &"# | | = ## [ &"# | | !%* [! ""# | | """"""""""""""" """""" ""! *%"## " " " "# | | """""""""""""""""""""""""""" *%[="## """"""""# | | ""###### ################"" !!% "############## | | [ ""# ##????????#" ==!%! #########????? | | %="# X"#????????#""=%=!%=##*][*==#????? | | = "# "" "" ##????????#" %[!*=[##!*!%*=#????? | | "# "" "" X"#??????###""= !=%"##*!][/*#????? | | "# " " ######### # "%[!!!"##==!/###????? | | "" "" ![= [ !=]![###????? | | "" "" !!![ "##!** ! #????? | | ""# " " ######### #""%!%* "## % #????? | | "# "" "" ""#??????###""! =*!"## [ #????? | | "# "" "" ##????????#"" [%="#########????? | | "# X"#????????#"" ! "####??##?????? | | "# ##????????#"" *%"##"###"###"#?? | | ""###### ################"" ## "!" "!" #?? | +----------------------------------------------------+ Best States ------------- Heat Dissipation 25 Energy Generation 17 Energy Capacity 180 Matter Stores 300 Matter Capacity 300 Sight Range 21 Terrain Scan Density 10 Evasion (%) 55 Recoil Reduction 2 Offensive Hacking 10 Authchip Count 3 Item Schematics ----------------- None Robot Schematics ------------------ None Fabricated ------------ Nothing Repaired ---------- Nothing Studied --------- None Alien Tech Used ----------------- None Achievements -------------- None Challenges ------------ None Game ------ Seed TimingFlakWand Manual? 0 Play Time 00:59:50 Cumulative 31.3 hours Start 2026.04.30 @ 01:14:40 End 2026.04.30 @ 03:58:29 Sessions 5 Manual Loads 0 Difficulty Rogue Special Mode None Game No. 35 Rogue 35 Adventurer 0 Explorer 0 Win Type - Total 0 Types 0/0/0/0/0/0/0/0/0/0 Lore% 30 Gallery% 30 Achievement% 27 Wizard Run 0 Options --------- Layout 1 ASCII 0 Keyboard 0 Movement Mouse Keybinds 0 Fullscreen 2 Font 24/Smallcaps Map View 50x35 Zoom Use 0% Tactical HUD 1 Map Filters NONE Filters NONE Steam 1 RUN: a9a90dd1-e282-48c8-addf-1ffecfdadfac